Cogmind - Beta 15 @@@ ROGUE MODE // 2025.05.31 @ 20:01:28 Player: Figgis Result: Destroyed by S-10 Pest with Light Assault Rifle Performance ------------- Evolutions (0) 0 Regions Visited (2) 400 Robots Destroyed (15) 75 Value Destroyed (434) 434 Prototype IDs (13) 260 Alien Tech Used (0) 0 Bonus (0) 0 TOTAL SCORE: 1169 Bonus ------- None Cogmind --------- Core Integrity 0/250 Matter 295/300 Energy 200/200 System Corruption 0% Temperature Cool (0) Movement Walking (190) Ox1 Location -10/Subcaves Parts ------- > --- POWER (1) -------- Subdweller Power Source > --- PROPULSION (2) --- Aluminum Leg > --- UTILITY (2) ------ Small Storage Unit Makeshift System Shield > --- WEAPON (2) ------- Heavy Battle Rifle Hammer > --- INVENTORY (8) ---- Flightbrick Scrap Shield Subdweller Machine Gun Grenade Launcher Peak State ------------ > --- POWER ------------ Subdweller Power Source > --- PROPULSION ------- Aluminum Leg Aluminum Leg > --- UTILITY ---------- Small Storage Unit Makeshift System Shield > --- WEAPON ----------- Heavy Battle Rifle Hammer > --- INVENTORY -------- Flightbrick Scrap Shield Subdweller Machine Gun Grenade Launcher [Rating: 18] Favorites ----------- Power Light Ion Engine Engine Light Ion Engine Propulsion Aluminum Leg Leg Aluminum Leg Utility Small Storage Unit Device Terrain Scanner Storage Small Storage Unit Hackware Makeshift System Shield Weapon Assault Rifle Ballistic Gun Assault Rifle Impact Weapon Hammer Build | -11 -10 -10 ------- Run | Yrd Mat Sub Slots Evolved . | . . . Power . | . . . Propulsion . | . . . Utility . | . . . Weapon . | . . . Parts Attached 20 | 5 8 7 Power 3 | . 2 1 Engine 3 | . 2 1 Core . | . . . Reactor . | . . . Propulsion 6 | 2 3 1 Treads . | . . . Leg 6 | 2 3 1 Wheel . | . . . Hover . | . . . Flight . | . . . Utility 4 | . 2 2 Device 2 | . 1 1 Storage 1 | . 1 . Processor . | . . . Hackware 1 | . . 1 Protection . | . . . Artifact . | . . . Weapon 7 | 3 1 3 Energy Gun . | . . . Energy Cannon . | . . . Ballistic Gun 6 | 3 1 2 Ballistic Cannon . | . . . Launcher . | . . . Special Weapon . | . . . Impact Weapon 1 | . . 1 Slashing Weapon . | . . . Piercing Weapon . | . . . Special Melee Weapon . | . . . Unidentified Prototypes . | . . . Parts Lost 3 | . 1 2 Power 2 | . 1 1 Propulsion 1 | . . 1 Utility . | . . . Weapon . | . . . Highest Loss Streak 1 | . 1 1 To Critical Strikes . | . . . Average Backups 5 | 2 7 4 Power . | 1 1 . Propulsion 1 | . 2 1 Utility . | . . 1 Weapon 2 | . 2 2 Tool/Special . | . . . Unused Backups 8 | . . 8 Power 1 | . . 1 Propulsion 3 | . . 3 Utility 2 | . . 2 Weapon 2 | . . 2 Tool/Special . | . . . Average Slot Usage (%) 99 | . 99 99 Engine 13 | . 13 14 Leg 28 | . 28 28 Device 13 | . 13 13 Storage 13 | . 13 14 Ballistic Gun 22 | . 28 18 Impact Weapon 5 | . . 9 Peak Build Rating 18 | 4 7 18 Average Rating 9 | 2 6 11 On Entrance 3 | . 4 7 Naked Turns . | . . . Heaviest Build 18 | 3 13 18 Greatest Support 20 | 3 20 20 Greatest Overweight (x) 1 | . . 1 Average Overweight (x) . | . . . Largest Inventory Capacity 8 | 5 8 8 Average Capacity 7 | 5 7 8 Most Carried 8 | 5 8 8 Average Carried 7 | 3 7 7 Final Capacity 8 | 5 8 8 Final Carried 8 | 4 8 8 Class Distribution -------------------- 100% | Mutant Dominant Class ---------------- Mutant | -10/Materials Mutant | -10/Subcaves Resources | -11 -10 -10 ----------- Run | Yrd Mat Sub Matter Collected 842 | 243 308 291 Remotely . | . . . Salvage Created 473 | . 315 158 Parts 31 | . 20 11 Haulers Intercepted . | . . . Recyclers Shooed . | . . . Parts Field Recycled . | . . . Retrieved Matter . | . . . Parts Self-Destructed 6 | . . 6 Prevented . | . . . Kills | -11 -10 -10 ------- Run | Yrd Mat Sub Combat Hostiles Destroyed 12 | . 8 4 Guns 12 | . 8 4 Classes Destroyed 5 | . 4 1 Operator 1 | . 1 . Watcher 2 | . 2 . Swarmer 3 | . 3 . Grunt 5 | . 5 . Subdweller 4 | . . 4 Best Kill Streak 3 | . 3 1 Combat Bots Only 3 | . 3 1 Max Kills in Single Turn 1 | . 1 1 Gunslinging . | . . . Exploded . | . . . Melee . | . . . Uniques/NPCs Destroyed . | . . . Combat | -11 -10 -10 -------- Run | Yrd Mat Sub Hostile Shots Fired 80 | . 52 28 Missed 22 | . 12 10 Hits 58 | . 40 18 Projectile 58 | . 40 18 AOE 2 | . . 2 Critical Strikes 1 | . 1 . Damage Taken 923 | . 474 449 Core 258 | . 136 122 Absorbed by Shields . | . . . Core Remaining (%) 100 | 100 . . Volleys Fired 79 | . 52 27 Largest 2 | . 2 2 Hottest 50 | . 40 50 Shots Fired 137 | . 104 33 Gun 137 | . 104 33 Cannon . | . . . Launcher . | . . . Special . | . . . Kinetic 137 | . 104 33 Thermal . | . . . Explosive . | . . . Electromagnetic . | . . . Robot Hit Streak 13 | . 9 13 Robot Miss Streak 5 | . 5 1 Penetration Max . | . . . Secondary Targets 1 | . 1 . Max Gunslinging Chain 1 | . 1 . Shots Hit Robots 79 | . 58 21 Core Hits 24 | . 19 5 Critical Kills 1 | . . 1 Critical Parts Destroyed 1 | . . 1 Critical Strikes 2 | . . 2 Destroy 1 | . . 1 Smash 1 | . . 1 Melee Attacks 34 | . . 34 Impact 34 | . . 34 Slashing . | . . . Piercing . | . . . Sneak Attacks . | . . . Combat Hostiles . | . . . Follow-up Attacks . | . . . Damage Inflicted 1153 | . 754 399 Guns 1081 | . 754 327 Cannons . | . . . Explosions . | . . . Melee 72 | . . 72 Ramming . | . . . Kinetic 1081 | . 754 327 Thermal . | . . . Explosive . | . . . Electromagnetic . | . . . Impact 72 | . . 72 Slashing . | . . . Piercing . | . . . Highest Corruption . | . . . Average Corruption . | . . . Corruption Purged . | . . . Corruption Blocked . | . . . Overload Shots . | . . . Overflow Damage 22 | . . 22 Projectiles . | . . . Explosions . | . . . Melee 22 | . . 22 Knockbacks . | . . . Impact . | . . . Kinetic . | . . . Secondary . | . . . Self-Inflicted Damage . | . . . Shots . | . . . Rammed . | . . . Targets Rammed . | . . . Kicked . | . . . Crushed . | . . . Highest Temperature 20 | . 20 . Average Temperature 4 | . 4 . Received Heat Transfer 291 | . 210 81 Siege Activations . | . . . Martial Activations . | . . . Shielding Activations . | . . . Robots Disrupted . | . . . Combat Hostiles . | . . . Robots Corrupted . | . . . Combat Hostiles . | . . . Parts Fried . | . . . Impact Corruptions 1 | . . 1 Robots Melted . | . . . Combat Hostiles . | . . . Parts Melted . | . . . Heat Transferred . | . . . Parts Sabotaged . | . . . Parts Stolen . | . . . Parts Stripped . | . . . Power Chain Reactions . | . . . Alert | -11 -10 -10 ------- Run | Yrd Mat Sub Maximum Alert Level . | . . . Low Security (%) 100 | 100 100 . Level 1 . | . . . Level 2 . | . . . Level 3 . | . . . Level 4 . | . . . Level 5 . | . . . High Security . | . . . Max Security . | . . . Peak Influence 99 | . 99 . Initial . | . . . Average 13 | . 13 . Influence Increases 307 | . 292 15 Destroy 0b10 Robot/C 160 | . 160 . Destroy 0b10 Robot/NC 15 | . 15 . Destroy Leader 44 | . 44 . Successful Hack 27 | . 27 . Destroy Structure 1 | . 1 . Lose Combat Pursuer 60 | . 45 15 Influence Decreases 296 | . 292 4 Time Decay 197 | . 193 4 Purge Threat 99 | . 99 . Squads Dispatched 2 | . 2 . Investigation . | . . . Extermination . | . . . Reinforcement 2 | . 2 . Assault . | . . . Garrison . | . . . Intercept . | . . . Searches Triggered . | . . . Construction Impeded . | . . . Haulers Reinforced . | . . . Active Scanning Responses . | . . . Cargo Convoy Interrupts . | . . . Stealth | -11 -10 -10 --------- Run | Yrd Mat Sub Distress Signals 1 | . 1 . Communications Jammed . | . . . Distress Signals . | . . . Times Spotted 35 | . 21 14 Peak Tracking Total 4 | . 4 3 Tactical Retreats 9 | . 3 6 Traps | -11 -10 -10 ------- Run | Yrd Mat Sub Traps Triggered . | . . . Indirectly . | . . . Trap Hack Attempts . | . . . Triggered . | . . . Disarmed . | . . . Reprogrammed . | . . . Reused . | . . . Traps Extracted . | . . . Installed . | . . . Triggered . | . . . Machines | -11 -10 -10 ---------- Run | Yrd Mat Sub Machines Disabled 1 | . . 1 Max in Single Turn 1 | . . 1 Machines Repaired . | . . . Machines Dismantled . | . . . Machines Sabotaged . | . . . Overloaded Fab Kills . | . . . Hacking | -11 -10 -10 --------- Run | Yrd Mat Sub Machines Accessed 6 | . 5 1 Terminals 5 | . 5 . Fabricators . | . . . Repair Stations . | . . . Recycling Units . | . . . Scanalyzers . | . . . Garrison Access . | . . . Total Hacks 22 | . 13 9 Successful 18 | . 9 9 Failed 4 | . 4 . Catastrophic . | . . . Database Lockouts . | . . . Manual 3 | . 3 . Terminals 13 | . 13 . Fabricators . | . . . Repair Stations . | . . . Recycling Units . | . . . Scanalyzers . | . . . Garrison Access . | . . . Terminal Hacks 18 | . 9 9 Record 8 | . . 8 Robot Analysis 2 | . 2 . Prototype ID Bank 1 | . 1 . Emergency Access Points 1 | . 1 . Unreport Threat 1 | . 1 . Locate Traps 2 | . 2 . Patrol Status 1 | . 1 . Zone Layout 1 | . 1 . Proto ID Catalog 1 | . . 1 Fabricator Hacks . | . . . Repair Station Hacks . | . . . Recycling Unit Hacks . | . . . Scanalyzer . | . . . Garrison Access Hacks . | . . . Unauthorized Hacks . | . . . Terminals . | . . . Fabricators . | . . . Repair Stations . | . . . Recycling Units . | . . . Scanalyzers . | . . . Garrison Access . | . . . Data Cores Recovered . | . . . Used . | . . . Hacking Detections 4 | . 4 . Full Trace Events . | . . . Feedback Events . | . . . Feedback Blocked . | . . . Robot Schematics Acquired . | . . . Robots Built . | . . . Authchips . | . . . Time . | . . . Total Robot Build Rating . | . . . Part Schematics Acquired . | . . . Parts Built . | . . . Authchips . | . . . Time . | . . . Total Part Build Rating . | . . . Parts Repaired . | . . . Time . | . . . Parts Recycled . | . . . Recycled Matter . | . . . Retrieved Matter . | . . . Retrieved Components . | . . . Parts Scanalyzed . | . . . Part Schematics Acquired . | . . . Parts Damaged . | . . . Bothacking | -11 -10 -10 ------------ Run | Yrd Mat Sub Used RIF Installer . | . . . Robots Hacked . | . . . Non-combat . | . . . Combat . | . . . Robot Hacks Applied . | . . . Relay Couplers Released . | . . . Fabnet Peak Effective % . | . . . Robots Rewired . | . . . Allies Hacked . | . . . Hacks Repelled . | . . . Allies | -11 -10 -10 -------- Run | Yrd Mat Sub Total Allies . | . . . Largest Group . | . . . Highest-Rated Group . | . . . Highest-Rated Ally . | . . . Total Orders . | . . . Ally Attacks . | . . . Total Damage . | . . . Kills . | . . . Allies Corrupted . | . . . Allies Melted . | . . . Intel | -11 -10 -10 ------- Run | Yrd Mat Sub Active Infowar (turns) 2538 | . 1107 1431 Optics 180 | . . 180 Terrain 2358 | . 1107 1251 Robot Analysis Total 2 | . 2 . Derelict Logs Recovered 2 | . . 2 Drone Launches . | . . . Drone Recoveries . | . . . Exploration | -11 -10 -10 ------------- Run | Yrd Mat Sub Turns Passed 2653 | 36 1117 1500 Spaces Moved 1857 | 45 777 1035 Core 60 | 45 15 . Treads . | . . . Legs 1797 | . 762 1035 Wheels . | . . . Hover . | . . . Flight . | . . . Fastest Speed 50 | 50 50 120 Average Speed 117 | 50 118 120 Slowest Speed 190 | 50 120 190 Overloaded Moves . | . . . Propulsion Burnouts . | . . . Robots Hopped . | . . . Potential Cave-ins . | . . . Cave-ins Triggered . | . . . Exploration Rate (%) 53 | 4 96 61 Regions Visited 2 Branch Regions 1 Pre-discovered Areas . | . . . Known Exits Taken . | . . . Unknown Exits Taken 2 | 1 1 . Scrap Searched 5 | . . 5 Spaces Dug 5 | . . 5 Terrain Destroyed 6 | . . 6 Melee 5 | . . 5 Projectile 1 | . . 1 AOE . | . . . Terrain Rammed . | . . . Walls Destroyed . | . . . Machines Disabled . | . . . Actions | -11 -10 -10 --------- Run | Yrd Mat Sub Total 2126 | 57 868 1201 Wait 95 | . 19 76 Move 1855 | 44 776 1035 Hop . | . . . Pick Up 21 | 8 9 4 Fast Attach 5 | . 1 4 Attach 7 | 4 3 . Detach . | . . . Swap 13 | 1 4 8 Drop 17 | . 4 13 Fire 79 | . 52 27 Melee 34 | . . 34 Ram . | . . . Kick . | . . . Crush . | . . . Escape Stasis . | . . . Rewire . | . . . Trap . | . . . Miscellaneous . | . . . Route ------- -11/Scrapyard -10/Materials (discovered 5 exits: [*Mat x3] / [*Min] / *Sub) -10/Subcaves (discovered 2 exits: [*Mat x2]) History --------- Turn | Location | Event 5 | -11/Scrapyard | Discovered new exit (range 15) 37 | -11/Scrapyard | Entered Materials 158 | -10/Materials | Discovered new exit (range 8) 202 | -10/Materials | Discovered new exit (range 13) 311 | -10/Materials | Build established: Mutant 401 | -10/Materials | Discovered new exit (range 11) 523 | -10/Materials | Core integrity fell below 50% 613 | -10/Materials | Discovered new exit (range 6) 813 | -10/Materials | Discovered new exit (range 9) 1154 | -10/Materials | Entered Subcaves 1155 | -10/Subcaves | Approached by a straggling Scientist 1299 | -10/Subcaves | Discovered new exit (range 14) 1344 | -10/Subcaves | Learned Materials garrison access intel 1446 | -10/Subcaves | Visited 4L-MR0's lab 1471 | -10/Subcaves | Found Flightbrick 1840 | -10/Subcaves | A swath of the cavern ceiling suddenly collapsed 1840 | -10/Subcaves | Shifting Twisted Machinery released Scrap Shield 1851 | -10/Subcaves | Learned Materials terminal intel 1882 | -10/Subcaves | Shifting Twisted Machinery released Battle Cannon 1886 | -10/Subcaves | Shifting Twisted Machinery released Scrap Shield 1956 | -10/Subcaves | Shifting Twisted Machinery released Sub. Machine Gun 2110 | -10/Subcaves | Shifting Twisted Machinery released Hvy. Battle Rifle 2129 | -10/Subcaves | Shifting Twisted Machinery released Sub. Power Source 2272 | -10/Subcaves | Core integrity fell below 20% 2416 | -10/Subcaves | Discovered new exit (range 13) 2654 | -10/Subcaves | Destroyed by S-10 Pest with Light Assault Rifle Last Messages --------------- 02320_ Acquired 39 matter. 02369_ Q5-TZ1(R) destroyed. 02372_ Acquired 22 matter. 02383_ YL-87T(R): "MADSUB!" 02391_ YL-87T(R) destroyed. 02393_ Acquired 3 matter. 02405_ Dropped Terrain Scanner. 02406_ Acquired Sub. Optics. 02407_ Acquired 10 matter. 02416_ EXIT=FOUND 02450_ Lgt. Ion Engine destroyed. 02453_ HA-UOG(R) suffers critical hit (Destroy). 02453_ HA-UOG(R) destroyed. 02455_ Acquired 6 matter. 02457_ Acquired Sub. Power Source. 02461_ RY-ZII(R) destroyed. 02488_ Acquired 10 matter. 02587_ Dropped Sub. Optics. 02591_ Acquired Mak. System Shield. 02650_ Aluminum Leg destroyed. Map ----- +----------------------------------------------------+ | ?????????????????????????????????????????????????? | | ?????????????????????????????????????????????????? | | ?????????????????????????????????????????????????? | | ?????????????????????????????????????????????????? | | ?????????????????????????????????????????????????? | | ?????????????????????????????????????????????????? | | ?????????????????????????????????????????????????? | | ?????????????????????????????????????????????????? | | ?????????????????????????????????????????????????? | | ?????????????????????????????????????????????????? | | ?????????????????????????????????????????????????? | | ?????????????????????????????????????????????????? | | ?????????????????????????????????????????????????? | | ?????????????????????????????????????????????????? | | ?????????????????????????????????????????????????? | | ??????????????????########???????????????## ?????? | | ????????????????### # #???????????????# ?????? | | ????????????????# ###?????????????? ??#??? | | ????????????????# #?????????????? ## ??? | | ????????????????# #??????????????? ??? | | ?????????????????# #??????????????? ??? | | ????????????????## ##???? ????????# ??? | | ????????????????# #???? ??????# ??? | | ??????????????### #?### ?????# #?? | | ??????????????# ## % ?????# #?? | | ?????????????## @ ## % %??# #?? | | ????????????## ss ???# ##? | | ??????####### ???# ## | | ??????# # % ???# # | | ??????# ##? ## #????# | | ??????# ##??# ##???????## | | ??????# ## ##??## ##?????????# | | # ???## #### #######?# ##?????????# | | ### ### ##??# ## #?####???## | | #####???# ### ##?## # | | ##?####??# ## #?# # | | ## #### #?????# ### ### | | ?# #?????## ## ##?? | | ##??##### #??? | | #??## ## ! #??? | | #?## #### #?? | | ### ### #??## ##?? | | ? #??# ##???# #?? | | ?# ???## #?? # | | ?#### ## ????### ## # #?# ##### | | ????####?## ??????####### ##?# ##???# # # | | ??????????###????????????#####??#######????####### | | ?????????????????????????????????????????????????? | | ?????????????????????????????????????????????????? | | ?????????????????????????????????????????????????? | +----------------------------------------------------+ Best States ------------- Heat Dissipation 25 Energy Generation 15 Energy Capacity 200 Matter Stores 300 Matter Capacity 300 Sight Range 21 Terrain Scan Range 14 Terrain Scan Density 10 Evasion (%) 55 Defensive Hacking 11 Item Schematics ----------------- None Robot Schematics ------------------ None Fabricated ------------ Nothing Repaired ---------- Nothing Alien Tech Used ----------------- None Achievements -------------- None Challenges ------------ None Game ------ Seed HardenedLargePurifier Manual? 0 Play Time 00:19:17 Cumulative 168.5 hours Start 2025.05.31 @ 19:40:17 End 2025.05.31 @ 20:01:28 Sessions 1 Manual Loads 0 Difficulty Rogue Special Mode None Game No. 257 Rogue 254 Adventurer 3 Explorer 0 Win Type - Total 1 Types 1/0/0/0/0/0/0/0/0/0 Lore% 57 Gallery% 57 Achievement% 45 Wizard Run 0 Options --------- Layout 0 ASCII 0 Keyboard 0 Movement Mouse Keybinds 0 Fullscreen 2 Font 18/SmallcapsGlow Map View 76x50 Zoom Use 0% Tactical HUD 1 Map Filters NONE Filters NONE Steam 1 RUN: e6880aaf-139b-4b12-b982-48713d4b6bb7